[Event "Titled Tuesday Blitz March 14 Late 2023"]
[White "Zheng, Richard"]
[Black "Fajdetic, Hrvoje"]
[WhiteFideId "2624893"]
[BlackFideId "14501945"]
[WhiteElo "2633"]
[BlackElo "2185"]
[Result "1-0"]
[Round "01"]
[TimeControl "180+1"]
[Date "2023.03.14"]
[WhiteClock "0:01:04"]
[BlackClock "0:00:02"]

1. d4 {[%clk 0:02:56]}  e6 {[%clk 0:02:59]} 2. c4 {[%clk 0:02:55]}  f5 {[%clk 0:02:59]} 3. Nc3 {[%clk 0:02:54]}  Nf6 {[%clk 0:02:59]} 4. g3 {[%clk 0:02:55]}  Bb4 {[%clk 0:02:58]} 5. Bg2 {[%clk 0:02:55]}  Bxc3+ {[%clk 0:02:58]} 6. bxc3 {[%clk 0:02:55]}  O-O {[%clk 0:02:59]} 7. Bg5 {[%clk 0:02:50]}  d6 {[%clk 0:02:58]} 8. e4 {[%clk 0:02:47]}  fxe4 {[%clk 0:02:54]} 9. Bxe4 {[%clk 0:02:48]}  Nxe4 {[%clk 0:02:39]} 10. Bxd8 {[%clk 0:02:48]}  Rxd8 {[%clk 0:02:40]} 11. f3 {[%clk 0:02:38]}  Nf6 {[%clk 0:02:33]} 12. Ne2 {[%clk 0:02:38]}  Nc6 {[%clk 0:02:31]} 13. O-O {[%clk 0:02:37]}  e5 {[%clk 0:02:31]} 14. c5 {[%clk 0:02:29]}  Bh3 {[%clk 0:02:11]} 15. Re1 {[%clk 0:02:26]}  Rf8 {[%clk 0:02:09]} 16. cxd6 {[%clk 0:02:25]}  cxd6 {[%clk 0:02:09]} 17. Qb3+ {[%clk 0:02:11]}  Kh8 {[%clk 0:01:52]} 18. dxe5 {[%clk 0:02:06]}  Nxe5 {[%clk 0:01:41]} 19. Nd4 {[%clk 0:02:06]}  Nfd7 {[%clk 0:01:17]} 20. f4 {[%clk 0:01:58]}  Nd3 {[%clk 0:01:00]} 21. Re3 {[%clk 0:01:51]}  N3c5 {[%clk 0:00:36]} 22. Qd5 {[%clk 0:01:51]}  Nf6 {[%clk 0:00:29]} 23. Qxd6 {[%clk 0:01:37]}  Nce4 {[%clk 0:00:18]} 24. Qe7 {[%clk 0:01:31]}  Rae8 {[%clk 0:00:18]} 25. Qxb7 {[%clk 0:01:31]}  Nc5 {[%clk 0:00:06]} 26. Rxe8 {[%clk 0:01:27]}  Rxe8 {[%clk 0:00:06]} 27. Qxa7 {[%clk 0:01:16]}  Nce4 {[%clk 0:00:05]} 28. Re1 {[%clk 0:01:13]}  h5 {[%clk 0:00:03]} 29. Qf7 {[%clk 0:01:08]}  Rb8 {[%clk 0:00:03]} 30. Ne6 {[%clk 0:01:06]}  Rg8 {[%clk 0:00:02]} 31. Ng5 {[%clk 0:01:05]}  Bf5 {[%clk 0:00:01]} 32. Nxe4 {[%clk 0:01:04]}  Bxe4 {[%clk 0:00:02]} 33. Rxe4 {[%clk 0:01:04]}  Nxe4 {[%clk 0:00:02]} 34. Qxh5# {[%clk 0:01:04]} 1-0


[Site "https://www.chess.com"]

[Event "Titled Tuesday Blitz March 14 Late 2023"]
[White "Svane, Rasmus"]
[Black "ArchibaldCerveza29"]
[WhiteFideId "4657101"]
[WhiteElo "2597"]
[BlackElo "2504"]
[Result "1-0"]
[Round "01"]
[TimeControl "180+2"]
[Date "2023.03.14"]
[WhiteClock "0:01:47"]
[BlackClock "0:01:05"]

1. Nf3 {[%clk 0:02:54]}  d5 {[%clk 0:02:57]} 2. g3 {[%clk 0:02:50]}  Nf6 {[%clk 0:02:56]} 3. Bg2 {[%clk 0:02:50]}  e6 {[%clk 0:02:57]} 4. O-O {[%clk 0:02:49]}  Be7 {[%clk 0:02:58]} 5. c4 {[%clk 0:02:46]}  O-O {[%clk 0:02:57]} 6. b3 {[%clk 0:02:44]}  b6 {[%clk 0:02:57]} 7. d4 {[%clk 0:02:44]}  Bb7 {[%clk 0:02:56]} 8. Nc3 {[%clk 0:02:44]}  dxc4 {[%clk 0:02:54]} 9. bxc4 {[%clk 0:02:45]}  c5 {[%clk 0:02:53]} 10. d5 {[%clk 0:02:45]}  exd5 {[%clk 0:02:51]} 11. Nh4 {[%clk 0:02:45]}  Nc6 {[%clk 0:02:50]} 12. cxd5 {[%clk 0:02:38]}  Nb4 {[%clk 0:02:49]} 13. d6 {[%clk 0:02:31]}  Bxg2 {[%clk 0:02:00]} 14. dxe7 {[%clk 0:02:30]}  Qxe7 {[%clk 0:01:47]} 15. Kxg2 {[%clk 0:02:28]}  Rfd8 {[%clk 0:01:47]} 16. Qb3 {[%clk 0:02:27]}  a5 {[%clk 0:01:43]} 17. a3 {[%clk 0:02:20]}  a4 {[%clk 0:01:39]} 18. Nxa4 {[%clk 0:02:02]}  Nbd5 {[%clk 0:01:21]} 19. Nc3 {[%clk 0:01:52]}  Nxc3 {[%clk 0:01:11]} 20. Qxc3 {[%clk 0:01:53]}  Qxe2 {[%clk 0:01:09]} 21. Qf3 {[%clk 0:01:53]}  Qe5 {[%clk 0:01:07]} 22. Bf4 {[%clk 0:01:52]}  Qb2 {[%clk 0:01:05]} 23. Bg5 {[%clk 0:01:47]} 1-0


[Site "https://www.chess.com"]

[Event "Titled Tuesday Blitz March 14 Late 2023"]
[White "Bortnyk, Olexandr"]
[Black "Postma, Dinant"]
[WhiteFideId "14120828"]
[BlackFideId "1018612"]
[WhiteElo "2734"]
[BlackElo "2501"]
[Result "0-1"]
[Round "01"]
[TimeControl "180+2"]
[Date "2023.03.14"]
[WhiteClock "0:01:27"]
[BlackClock "0:00:12"]

1. d4 {[%clk 0:03:00]}  d5 {[%clk 0:02:54]} 2. Nc3 {[%clk 0:03:00]}  c6 {[%clk 0:02:52]} 3. Bf4 {[%clk 0:03:00]}  Nf6 {[%clk 0:02:51]} 4. e3 {[%clk 0:03:00]}  Bf5 {[%clk 0:02:46]} 5. Nf3 {[%clk 0:03:00]}  e6 {[%clk 0:02:45]} 6. Ne5 {[%clk 0:03:01]}  Bb4 {[%clk 0:02:39]} 7. g4 {[%clk 0:02:59]}  Bg6 {[%clk 0:02:26]} 8. h4 {[%clk 0:02:59]}  Ne4 {[%clk 0:02:22]} 9. h5 {[%clk 0:02:57]}  Nxc3 {[%clk 0:02:19]} 10. Qd2 {[%clk 0:02:58]}  Qa5 {[%clk 0:01:21]} 11. a3 {[%clk 0:02:53]}  Be4 {[%clk 0:01:21]} 12. f3 {[%clk 0:02:53]}  f6 {[%clk 0:01:21]} 13. fxe4 {[%clk 0:02:51]}  fxe5 {[%clk 0:01:22]} 14. Bxe5 {[%clk 0:02:44]}  O-O {[%clk 0:01:20]} 15. Rc1 {[%clk 0:02:30]}  Bxa3 {[%clk 0:01:10]} 16. bxa3 {[%clk 0:02:26]}  Qxa3 {[%clk 0:01:10]} 17. exd5 {[%clk 0:02:22]}  Ne4 {[%clk 0:01:00]} 18. dxe6 {[%clk 0:02:11]}  Nxd2 {[%clk 0:00:58]} 19. Kxd2 {[%clk 0:02:12]}  Rf2+ {[%clk 0:00:54]} 20. Be2 {[%clk 0:02:10]}  Na6 {[%clk 0:00:46]} 21. Rhe1 {[%clk 0:01:58]}  Rd8 {[%clk 0:00:27]} 22. Ra1 {[%clk 0:01:52]}  Qb4+ {[%clk 0:00:23]} 23. Kd1 {[%clk 0:01:52]}  Re8 {[%clk 0:00:14]} 24. Bg3 {[%clk 0:01:47]}  Rg2 {[%clk 0:00:14]} 25. Bf4 {[%clk 0:01:47]}  Rxe6 {[%clk 0:00:14]} 26. Rf1 {[%clk 0:01:42]}  Qc3 {[%clk 0:00:12]} 27. Rc1 {[%clk 0:01:35]}  Nb4 {[%clk 0:00:12]} 28. h6 {[%clk 0:01:34]}  Nd5 {[%clk 0:00:13]} 29. Rb1 {[%clk 0:01:25]}  Nxe3+ {[%clk 0:00:12]} 30. Bxe3 {[%clk 0:01:26]}  Qxe3 {[%clk 0:00:13]} 31. Re1 {[%clk 0:01:26]}  Qxd4+ {[%clk 0:00:13]} 32. Kc1 {[%clk 0:01:25]}  Rexe2 {[%clk 0:00:13]} 33. Rxe2 {[%clk 0:01:25]}  Rxe2 {[%clk 0:00:13]} 34. Rxb7 {[%clk 0:01:25]}  Qd2+ {[%clk 0:00:13]} 35. Kb2 {[%clk 0:01:26]}  Qxc2+ {[%clk 0:00:14]} 36. Ka3 {[%clk 0:01:26]}  Re3+ {[%clk 0:00:13]} 37. Kb4 {[%clk 0:01:27]}  Qe4+ {[%clk 0:00:12]} 38. Kc5 {[%clk 0:01:27]}  Qd5+ {[%clk 0:00:12]} 0-1


[Site "https://www.chess.com"]

[Event "Titled Tuesday Blitz March 14 Late 2023"]
[White "Van Foreest, Jorden"]
[Black "TimGrutter03"]
[WhiteFideId "1039784"]
[WhiteElo "2633"]
[BlackElo "2493"]
[Result "1-0"]
[Round "01"]
[TimeControl "180+2"]
[Date "2023.03.14"]
[WhiteClock "0:00:11"]
[BlackClock "0:00:03"]

1. e4 {[%clk 0:02:54]}  c5 {[%clk 0:02:54]} 2. Nf3 {[%clk 0:02:50]}  e6 {[%clk 0:02:54]} 3. g3 {[%clk 0:02:48]}  Nc6 {[%clk 0:02:53]} 4. Bg2 {[%clk 0:02:48]}  Nf6 {[%clk 0:02:51]} 5. Qe2 {[%clk 0:02:49]}  e5 {[%clk 0:02:48]} 6. O-O {[%clk 0:02:48]}  Be7 {[%clk 0:02:48]} 7. d3 {[%clk 0:02:46]}  O-O {[%clk 0:02:47]} 8. Na3 {[%clk 0:02:42]}  d6 {[%clk 0:02:41]} 9. c3 {[%clk 0:02:40]}  Re8 {[%clk 0:02:33]} 10. Nc2 {[%clk 0:02:38]}  h6 {[%clk 0:02:31]} 11. Ne3 {[%clk 0:02:37]}  Bf8 {[%clk 0:02:31]} 12. a4 {[%clk 0:02:35]}  d5 {[%clk 0:02:20]} 13. exd5 {[%clk 0:02:34]}  Nxd5 {[%clk 0:02:21]} 14. Nxd5 {[%clk 0:02:34]}  Qxd5 {[%clk 0:02:21]} 15. Nd2 {[%clk 0:02:34]}  Qd7 {[%clk 0:02:02]} 16. a5 {[%clk 0:02:31]}  Qc7 {[%clk 0:01:51]} 17. Nc4 {[%clk 0:02:30]}  Bf5 {[%clk 0:01:42]} 18. Qf3 {[%clk 0:02:22]}  Bg6 {[%clk 0:01:34]} 19. Re1 {[%clk 0:02:18]}  Rad8 {[%clk 0:01:32]} 20. Bf1 {[%clk 0:01:57]}  b5 {[%clk 0:01:24]} 21. axb6 {[%clk 0:01:56]}  axb6 {[%clk 0:01:24]} 22. Ne3 {[%clk 0:01:57]}  e4 {[%clk 0:01:19]} 23. dxe4 {[%clk 0:01:56]}  Bxe4 {[%clk 0:01:20]} 24. Qe2 {[%clk 0:01:23]}  Ne5 {[%clk 0:01:16]} 25. Bg2 {[%clk 0:01:23]}  Qb7 {[%clk 0:01:11]} 26. Ra7 {[%clk 0:00:52]}  Qxa7 {[%clk 0:00:49]} 27. Bxe4 {[%clk 0:00:52]}  c4 {[%clk 0:00:40]} 28. Nf5 {[%clk 0:00:23]}  b5 {[%clk 0:00:20]} 29. Be3 {[%clk 0:00:19]}  Qd7 {[%clk 0:00:18]} 30. Bd4 {[%clk 0:00:18]}  Nd3 {[%clk 0:00:14]} 31. Qg4 {[%clk 0:00:19]}  g6 {[%clk 0:00:02]} 32. Re3 {[%clk 0:00:16]}  Ne5 {[%clk 0:00:02]} 33. Qf4 {[%clk 0:00:12]}  gxf5 {[%clk 0:00:01]} 34. Bxf5 {[%clk 0:00:13]}  Qd6 {[%clk 0:00:01]} 35. Bxe5 {[%clk 0:00:13]}  Rxe5 {[%clk 0:00:02]} 36. Rxe5 {[%clk 0:00:12]}  Qd1+ {[%clk 0:00:03]} 37. Kg2 {[%clk 0:00:12]}  Bd6 {[%clk 0:00:03]} 38. Qxh6 {[%clk 0:00:08]}  Bxe5 {[%clk 0:00:02]} 39. Bh7+ {[%clk 0:00:08]}  Kh8 {[%clk 0:00:03]} 40. Bg6+ {[%clk 0:00:09]}  Kg8 {[%clk 0:00:03]} 41. Qh7+ {[%clk 0:00:10]}  Kf8 {[%clk 0:00:03]} 42. Qxf7# {[%clk 0:00:11]} 1-0


[Site "https://www.chess.com"]

[Event "Titled Tuesday Blitz March 14 Late 2023"]
[White "Pakleza, Zbigniew"]
[Black "Kielinkei"]
[WhiteFideId "1119290"]
[WhiteElo "2410"]
[BlackElo "2423"]
[Result "0-1"]
[Round "01"]
[TimeControl "180+2"]
[Date "2023.03.14"]
[WhiteClock "0:00:02"]
[BlackClock "0:00:04"]

1. d4 {[%clk 0:02:59]}  Nf6 {[%clk 0:02:48]} 2. Nf3 {[%clk 0:02:59]}  e6 {[%clk 0:02:46]} 3. Bf4 {[%clk 0:02:58]}  c5 {[%clk 0:02:43]} 4. c3 {[%clk 0:02:57]}  Nc6 {[%clk 0:02:39]} 5. e3 {[%clk 0:02:57]}  Qb6 {[%clk 0:02:33]} 6. Qb3 {[%clk 0:02:56]}  d5 {[%clk 0:02:30]} 7. Nbd2 {[%clk 0:02:53]}  Qxb3 {[%clk 0:02:02]} 8. axb3 {[%clk 0:02:53]}  Be7 {[%clk 0:01:55]} 9. h3 {[%clk 0:02:51]}  O-O {[%clk 0:01:54]} 10. Be2 {[%clk 0:02:51]}  b6 {[%clk 0:01:46]} 11. Ne5 {[%clk 0:02:41]}  Bb7 {[%clk 0:01:45]} 12. Ba6 {[%clk 0:02:33]}  Nd8 {[%clk 0:01:26]} 13. Ke2 {[%clk 0:02:21]}  Bxa6+ {[%clk 0:01:10]} 14. Rxa6 {[%clk 0:02:22]}  Bd6 {[%clk 0:01:06]} 15. Rha1 {[%clk 0:02:17]}  Bxe5 {[%clk 0:00:45]} 16. dxe5 {[%clk 0:02:00]}  Nd7 {[%clk 0:00:42]} 17. Rxa7 {[%clk 0:01:58]}  Rxa7 {[%clk 0:00:43]} 18. Rxa7 {[%clk 0:01:58]}  Nxe5 {[%clk 0:00:42]} 19. Bxe5 {[%clk 0:01:44]}  Nc6 {[%clk 0:00:42]} 20. Ra6 {[%clk 0:01:36]}  Nxe5 {[%clk 0:00:41]} 21. Rxb6 {[%clk 0:01:37]}  Rc8 {[%clk 0:00:37]} 22. f4 {[%clk 0:01:26]}  Nd7 {[%clk 0:00:36]} 23. Ra6 {[%clk 0:01:20]}  Kf8 {[%clk 0:00:35]} 24. g4 {[%clk 0:01:16]}  Ke7 {[%clk 0:00:35]} 25. e4 {[%clk 0:01:00]}  Rb8 {[%clk 0:00:27]} 26. exd5 {[%clk 0:00:45]}  exd5 {[%clk 0:00:27]} 27. Ra7 {[%clk 0:00:31]}  Kd6 {[%clk 0:00:24]} 28. Kd3 {[%clk 0:00:32]}  f6 {[%clk 0:00:19]} 29. c4 {[%clk 0:00:27]}  d4 {[%clk 0:00:08]} 30. Kc2 {[%clk 0:00:20]}  Re8 {[%clk 0:00:08]} 31. b4 {[%clk 0:00:10]}  cxb4 {[%clk 0:00:08]} 32. Nb3 {[%clk 0:00:11]}  Re2+ {[%clk 0:00:06]} 33. Kb1 {[%clk 0:00:11]}  Re3 {[%clk 0:00:06]} 34. Nxd4 {[%clk 0:00:09]}  Rxh3 {[%clk 0:00:06]} 35. Nf5+ {[%clk 0:00:08]}  Kc6 {[%clk 0:00:06]} 36. Nxg7 {[%clk 0:00:05]}  b3 {[%clk 0:00:06]} 37. Kc1 {[%clk 0:00:04]}  Rg3 {[%clk 0:00:06]} 38. Nf5 {[%clk 0:00:03]}  Rxg4 {[%clk 0:00:06]} 39. Nd4+ {[%clk 0:00:02]}  Kd6 {[%clk 0:00:06]} 40. Nb5+ {[%clk 0:00:02]}  Ke6 {[%clk 0:00:06]} 41. Nd4+ {[%clk 0:00:02]}  Kd6 {[%clk 0:00:07]} 42. Nb5+ {[%clk 0:00:02]}  Ke6 {[%clk 0:00:07]} 43. f5+ {[%clk 0:00:02]}  Ke7 {[%clk 0:00:04]} 0-1


[Site "https://www.chess.com"]

[Event "Titled Tuesday Blitz March 14 Late 2023"]
[White "marik_spb"]
[Black "Holt, Conrad"]
[BlackFideId "2034387"]
[WhiteElo "2418"]
[BlackElo "2592"]
[Result "0-1"]
[Round "01"]
[TimeControl "180+2"]
[Date "2023.03.14"]
[WhiteClock "0:00:08"]
[BlackClock "0:00:20"]

1. d4 {[%clk 0:02:53]}  d5 {[%clk 0:02:57]} 2. c4 {[%clk 0:02:53]}  c6 {[%clk 0:02:57]} 3. Nf3 {[%clk 0:02:53]}  Nf6 {[%clk 0:02:57]} 4. Nc3 {[%clk 0:02:53]}  dxc4 {[%clk 0:02:57]} 5. g3 {[%clk 0:02:51]}  b5 {[%clk 0:02:53]} 6. Bg2 {[%clk 0:02:50]}  Bb7 {[%clk 0:02:53]} 7. O-O {[%clk 0:02:49]}  e6 {[%clk 0:02:53]} 8. a4 {[%clk 0:02:49]}  a6 {[%clk 0:02:48]} 9. Ne5 {[%clk 0:02:47]}  Qc8 {[%clk 0:02:37]} 10. e4 {[%clk 0:02:17]}  Nbd7 {[%clk 0:02:28]} 11. f4 {[%clk 0:02:04]}  Be7 {[%clk 0:02:27]} 12. f5 {[%clk 0:01:36]}  Nxe5 {[%clk 0:02:13]} 13. dxe5 {[%clk 0:01:35]}  Nd7 {[%clk 0:02:13]} 14. fxe6 {[%clk 0:01:08]}  Nxe5 {[%clk 0:02:11]} 15. exf7+ {[%clk 0:01:07]}  Nxf7 {[%clk 0:02:10]} 16. Bf4 {[%clk 0:00:25]}  O-O {[%clk 0:01:53]} 17. e5 {[%clk 0:00:25]}  g5 {[%clk 0:01:37]} 18. Be3 {[%clk 0:00:22]}  Nxe5 {[%clk 0:01:36]} 19. Qh5 {[%clk 0:00:20]}  Qg4 {[%clk 0:01:22]} 20. Qxg4 {[%clk 0:00:12]}  Nxg4 {[%clk 0:01:23]} 21. Bd4 {[%clk 0:00:10]}  Rad8 {[%clk 0:01:17]} 22. Bb6 {[%clk 0:00:09]}  Rxf1+ {[%clk 0:01:13]} 23. Rxf1 {[%clk 0:00:10]}  Rd7 {[%clk 0:01:08]} 24. Re1 {[%clk 0:00:08]}  b4 {[%clk 0:00:48]} 25. Ne4 {[%clk 0:00:08]}  Ne5 {[%clk 0:00:41]} 26. Nc5 {[%clk 0:00:06]}  Bxc5+ {[%clk 0:00:41]} 27. Bxc5 {[%clk 0:00:06]}  Nd3 {[%clk 0:00:41]} 28. Re8+ {[%clk 0:00:06]}  Kf7 {[%clk 0:00:42]} 29. Rf8+ {[%clk 0:00:06]}  Kg7 {[%clk 0:00:42]} 30. Rf5 {[%clk 0:00:06]}  h6 {[%clk 0:00:31]} 31. Be4 {[%clk 0:00:03]}  Nxc5 {[%clk 0:00:23]} 32. Rxc5 {[%clk 0:00:03]}  Rd1+ {[%clk 0:00:20]} 33. Kg2 {[%clk 0:00:04]}  Rd2+ {[%clk 0:00:21]} 34. Kh3 {[%clk 0:00:04]}  Rxb2 {[%clk 0:00:18]} 35. Rxc4 {[%clk 0:00:04]}  Bc8+ {[%clk 0:00:18]} 36. g4 {[%clk 0:00:01]}  Rb3+ {[%clk 0:00:18]} 37. Kg2 {[%clk 0:00:01]}  Bxg4 {[%clk 0:00:18]} 38. Rxc6 {[%clk 0:00:01]}  Bh3+ {[%clk 0:00:18]} 39. Kf2 {[%clk 0:00:01]}  a5 {[%clk 0:00:18]} 40. Rg6+ {[%clk 0:00:01]}  Kf7 {[%clk 0:00:18]} 41. Rxh6 {[%clk 0:00:01]}  Bd7 {[%clk 0:00:19]} 42. Ra6 {[%clk 0:00:01]}  Rb2+ {[%clk 0:00:18]} 43. Kg3 {[%clk 0:00:01]}  Bxa4 {[%clk 0:00:18]} 44. Rxa5 {[%clk 0:00:01]}  Bd7 {[%clk 0:00:19]} 45. Rxg5 {[%clk 0:00:01]}  Kf6 {[%clk 0:00:19]} 46. Rd5 {[%clk 0:00:01]}  Be6 {[%clk 0:00:19]} 47. Rb5 {[%clk 0:00:02]}  Rb3+ {[%clk 0:00:18]} 48. Kf2 {[%clk 0:00:01]}  Rb2+ {[%clk 0:00:18]} 49. Kg3 {[%clk 0:00:02]}  b3 {[%clk 0:00:19]} 50. Bd5 {[%clk 0:00:02]}  Bxd5 {[%clk 0:00:18]} 51. Rxd5 {[%clk 0:00:03]}  Ke6 {[%clk 0:00:14]} 52. Rb5 {[%clk 0:00:03]}  Kd6 {[%clk 0:00:15]} 53. Kh4 {[%clk 0:00:03]}  Kc6 {[%clk 0:00:15]} 54. Rb4 {[%clk 0:00:03]}  Kc5 {[%clk 0:00:16]} 55. Rb8 {[%clk 0:00:03]}  Kc4 {[%clk 0:00:16]} 56. Rc8+ {[%clk 0:00:02]}  Kd3 {[%clk 0:00:16]} 57. h3 {[%clk 0:00:02]}  Rg2 {[%clk 0:00:16]} 58. Rb8 {[%clk 0:00:02]}  b2 {[%clk 0:00:16]} 59. Kh5 {[%clk 0:00:02]}  Kc2 {[%clk 0:00:17]} 60. h4 {[%clk 0:00:03]}  b1=Q {[%clk 0:00:17]} 61. Rxb1 {[%clk 0:00:04]}  Kxb1 {[%clk 0:00:18]} 62. Kh6 {[%clk 0:00:04]}  Kc2 {[%clk 0:00:19]} 63. h5 {[%clk 0:00:05]}  Kd3 {[%clk 0:00:19]} 64. Kh7 {[%clk 0:00:05]}  Ke4 {[%clk 0:00:20]} 65. h6 {[%clk 0:00:06]}  Kf5 {[%clk 0:00:20]} 66. Kh8 {[%clk 0:00:07]}  Kf6 {[%clk 0:00:20]} 67. h7 {[%clk 0:00:07]}  Rd2 {[%clk 0:00:20]} 68. Kg8 {[%clk 0:00:08]}  Rd8# {[%clk 0:00:20]} 0-1


[Site "https://www.chess.com"]

[Event "Titled Tuesday Blitz March 14 Late 2023"]
[White "Preotu, Razvan"]
[Black "ArtemDyachuk"]
[WhiteFideId "2613280"]
[WhiteElo "2407"]
[BlackElo "2391"]
[Result "1-0"]
[Round "01"]
[TimeControl "180+2"]
[Date "2023.03.14"]
[WhiteClock "0:00:09"]
[BlackClock "0:00:08"]

1. e4 {[%clk 0:02:59]}  c5 {[%clk 0:02:52]} 2. Nf3 {[%clk 0:02:59]}  d6 {[%clk 0:02:53]} 3. d4 {[%clk 0:02:58]}  cxd4 {[%clk 0:02:53]} 4. Nxd4 {[%clk 0:02:59]}  Nf6 {[%clk 0:02:54]} 5. Nc3 {[%clk 0:02:59]}  a6 {[%clk 0:02:55]} 6. Be3 {[%clk 0:03:00]}  e5 {[%clk 0:02:53]} 7. Nb3 {[%clk 0:02:59]}  Be6 {[%clk 0:02:48]} 8. Qd2 {[%clk 0:02:48]}  Be7 {[%clk 0:02:45]} 9. O-O-O {[%clk 0:02:44]}  Nbd7 {[%clk 0:02:30]} 10. f4 {[%clk 0:02:44]}  exf4 {[%clk 0:02:30]} 11. Bxf4 {[%clk 0:02:43]}  Ne5 {[%clk 0:02:29]} 12. Nd4 {[%clk 0:02:38]}  Qc7 {[%clk 0:02:07]} 13. Nf5 {[%clk 0:02:33]}  O-O {[%clk 0:01:50]} 14. Nxd6 {[%clk 0:01:43]}  Ng6 {[%clk 0:01:47]} 15. e5 {[%clk 0:01:20]}  Nh5 {[%clk 0:01:32]} 16. g3 {[%clk 0:01:19]}  Rad8 {[%clk 0:01:06]} 17. Be2 {[%clk 0:01:08]}  Nhxf4 {[%clk 0:01:05]} 18. gxf4 {[%clk 0:01:09]}  Bxd6 {[%clk 0:01:02]} 19. exd6 {[%clk 0:01:09]}  Qa5 {[%clk 0:00:58]} 20. Kb1 {[%clk 0:00:58]}  b5 {[%clk 0:00:54]} 21. Rhf1 {[%clk 0:00:47]}  b4 {[%clk 0:00:46]} 22. Nd5 {[%clk 0:00:47]}  Rxd6 {[%clk 0:00:46]} 23. Qxb4 {[%clk 0:00:33]}  Rxd5 {[%clk 0:00:40]} 24. Qxa5 {[%clk 0:00:28]}  Rxa5 {[%clk 0:00:40]} 25. a3 {[%clk 0:00:24]}  Rb8 {[%clk 0:00:38]} 26. Rd6 {[%clk 0:00:20]}  Rf5 {[%clk 0:00:26]} 27. Rxa6 {[%clk 0:00:18]}  Rxf4 {[%clk 0:00:26]} 28. Rxf4 {[%clk 0:00:10]}  Nxf4 {[%clk 0:00:27]} 29. Bf3 {[%clk 0:00:10]}  h5 {[%clk 0:00:26]} 30. a4 {[%clk 0:00:10]}  g5 {[%clk 0:00:24]} 31. a5 {[%clk 0:00:10]}  g4 {[%clk 0:00:25]} 32. Ra8 {[%clk 0:00:10]}  Rxa8 {[%clk 0:00:04]} 33. Bxa8 {[%clk 0:00:11]}  h4 {[%clk 0:00:05]} 34. a6 {[%clk 0:00:11]}  g3 {[%clk 0:00:05]} 35. hxg3 {[%clk 0:00:11]}  hxg3 {[%clk 0:00:06]} 36. a7 {[%clk 0:00:11]}  Nd5 {[%clk 0:00:04]} 37. c4 {[%clk 0:00:01]}  Nc7 {[%clk 0:00:04]} 38. Bg2 {[%clk 0:00:01]}  Bxc4 {[%clk 0:00:04]} 39. Kc2 {[%clk 0:00:01]}  Be6 {[%clk 0:00:04]} 40. b4 {[%clk 0:00:01]}  Kg7 {[%clk 0:00:04]} 41. b5 {[%clk 0:00:01]}  Nxb5 {[%clk 0:00:01]} 42. a8=Q {[%clk 0:00:01]}  Nd4+ {[%clk 0:00:02]} 43. Kd1 {[%clk 0:00:01]}  Nf5 {[%clk 0:00:03]} 44. Ke1 {[%clk 0:00:02]}  Ne7 {[%clk 0:00:04]} 45. Qe4 {[%clk 0:00:01]}  Ng6 {[%clk 0:00:05]} 46. Qd4+ {[%clk 0:00:02]}  Kh6 {[%clk 0:00:05]} 47. Qe3+ {[%clk 0:00:02]}  Kh5 {[%clk 0:00:04]} 48. Qxg3 {[%clk 0:00:03]}  Nh4 {[%clk 0:00:05]} 49. Bf3+ {[%clk 0:00:03]}  Nxf3+ {[%clk 0:00:06]} 50. Qxf3+ {[%clk 0:00:04]}  Kg5 {[%clk 0:00:07]} 51. Kf2 {[%clk 0:00:05]}  f5 {[%clk 0:00:06]} 52. Ke3 {[%clk 0:00:05]}  Kf6 {[%clk 0:00:07]} 53. Qf4 {[%clk 0:00:06]}  Bf7 {[%clk 0:00:07]} 54. Kd4 {[%clk 0:00:07]}  Bg6 {[%clk 0:00:07]} 55. Kd5 {[%clk 0:00:07]}  Kf7 {[%clk 0:00:08]} 56. Kd6 {[%clk 0:00:08]}  Kf6 {[%clk 0:00:08]} 57. Qh4+ {[%clk 0:00:08]}  Kf7 {[%clk 0:00:08]} 58. Qe7+ {[%clk 0:00:08]}  Kg8 {[%clk 0:00:08]} 59. Qf6 {[%clk 0:00:09]}  Kh7 {[%clk 0:00:08]} 60. Ke7 {[%clk 0:00:09]}  Kh6 {[%clk 0:00:09]} 61. Qh4+ {[%clk 0:00:08]}  Kg7 {[%clk 0:00:09]} 62. Qg5 {[%clk 0:00:08]}  Kh7 {[%clk 0:00:08]} 63. Kf6 {[%clk 0:00:09]}  Kh8 {[%clk 0:00:08]} 64. Qxg6 {[%clk 0:00:09]} 1-0


[Site "https://www.chess.com"]

[Event "Titled Tuesday Blitz March 14 Late 2023"]
[White "Korchmar, Vasiliy"]
[Black "Becham, Khalid"]
[WhiteFideId "24131750"]
[BlackFideId "9000275"]
[WhiteElo "2370"]
[BlackElo "2081"]
[Result "1-0"]
[Round "01"]
[TimeControl "180+2"]
[Date "2023.03.14"]
[WhiteClock "0:00:37"]
[BlackClock "0:00:33"]

1. e4 {[%clk 0:03:00]}  d5 {[%clk 0:02:58]} 2. exd5 {[%clk 0:03:00]}  Qxd5 {[%clk 0:02:59]} 3. Nc3 {[%clk 0:03:00]}  Qd6 {[%clk 0:02:59]} 4. d4 {[%clk 0:02:59]}  Nf6 {[%clk 0:03:00]} 5. Nf3 {[%clk 0:02:57]}  a6 {[%clk 0:03:00]} 6. Bc4 {[%clk 0:02:49]}  Nc6 {[%clk 0:03:00]} 7. h3 {[%clk 0:02:41]}  b5 {[%clk 0:02:59]} 8. Bb3 {[%clk 0:02:38]}  Na5 {[%clk 0:02:59]} 9. O-O {[%clk 0:02:36]}  Bb7 {[%clk 0:03:00]} 10. Ne5 {[%clk 0:02:32]}  e6 {[%clk 0:02:57]} 11. Bf4 {[%clk 0:02:29]}  Nxb3 {[%clk 0:02:49]} 12. axb3 {[%clk 0:02:28]}  Nd5 {[%clk 0:02:50]} 13. Bg3 {[%clk 0:02:07]}  Qd8 {[%clk 0:02:43]} 14. Qh5 {[%clk 0:01:56]}  g6 {[%clk 0:02:38]} 15. Qf3 {[%clk 0:01:50]}  f6 {[%clk 0:02:12]} 16. Ng4 {[%clk 0:01:42]}  Bg7 {[%clk 0:02:03]} 17. Rfe1 {[%clk 0:01:40]}  O-O {[%clk 0:01:52]} 18. Rxe6 {[%clk 0:01:39]}  Qd7 {[%clk 0:01:25]} 19. Re2 {[%clk 0:00:58]}  h5 {[%clk 0:01:13]} 20. Nh2 {[%clk 0:00:50]}  Rab8 {[%clk 0:00:59]} 21. Nxd5 {[%clk 0:00:47]}  Bxd5 {[%clk 0:00:59]} 22. Qd3 {[%clk 0:00:47]}  g5 {[%clk 0:00:54]} 23. Nf3 {[%clk 0:00:47]}  h4 {[%clk 0:00:53]} 24. Bh2 {[%clk 0:00:47]}  g4 {[%clk 0:00:52]} 25. Nxh4 {[%clk 0:00:45]}  gxh3 {[%clk 0:00:52]} 26. Qxh3 {[%clk 0:00:46]}  Qc6 {[%clk 0:00:46]} 27. Nf5 {[%clk 0:00:44]}  Rbe8 {[%clk 0:00:39]} 28. Ne7+ {[%clk 0:00:42]}  Rxe7 {[%clk 0:00:39]} 29. Rxe7 {[%clk 0:00:43]}  Qxc2 {[%clk 0:00:36]} 30. Qg4 {[%clk 0:00:40]}  Rf7 {[%clk 0:00:34]} 31. Re8+ {[%clk 0:00:40]}  Rf8 {[%clk 0:00:33]} 32. Rae1 {[%clk 0:00:38]}  Bf7 {[%clk 0:00:33]} 33. Rxf8+ {[%clk 0:00:38]}  Kxf8 {[%clk 0:00:33]} 34. Qc8+ {[%clk 0:00:37]} 1-0


[Site "https://www.chess.com"]